Cogmind - Beta 15 @@@ ROGUE MODE // 2025.06.21 @ 22:37:27 Player: Volvedor Result: Destroyed by G-47 Trooper with Particle Gun Performance ------------- Evolutions (2) 1000 Regions Visited (3) 600 Robots Destroyed (28) 140 Value Destroyed (911) 911 Prototype IDs (1) 20 Alien Tech Used (0) 0 Bonus (0) 0 TOTAL SCORE: 2671 Bonus ------- None Cogmind --------- Core Integrity 0/550 Matter 138/300 Energy 99/100 System Corruption 0% Temperature Cool (9) Movement Core (50) Location -8/Materials Parts ------- > --- POWER (1) -------- (None) > --- PROPULSION (3) --- (None) > --- UTILITY (5) ------ (None) > --- WEAPON (2) ------- (None) > --- INVENTORY (5) ---- Light Treads Aluminum Leg Reaction Control System Hardened Medium Armor Plating Subdweller Beam Cannon Peak State ------------ > --- POWER ------------ Ion Engine > --- PROPULSION ------- Light Treads Light Treads Light Treads > --- UTILITY ---------- High-capacity Storage Unit Subdweller Optics Improved Terrain Scanner Improved Terrain Scan Processor Weapon Shielding > --- WEAPON ----------- Subdweller Machine Gun Advanced EMP Blaster > --- INVENTORY -------- Ion Engine Ion Engine Light Ion Engine Aluminum Leg Aluminum Leg Aluminum Leg Improved Terrain Scanner Seismic Detector Targeting Computer Weapon Shielding Tractor Beam Subdweller Beam Cannon Assault Rifle Light Assault Rifle Light Assault Rifle Light Assault Rifle Subdweller Shrapnel Launcher Improved Grenade Launcher Missile Launcher [Rating: 22] Favorites ----------- Power Ion Engine Engine Ion Engine Propulsion Aluminum Leg Treads Light Treads Leg Aluminum Leg Utility Seismic Detector Device Seismic Detector Storage High-capacity Storage Unit Processor Improved Terrain Scan Processor Protection Weapon Shielding Weapon Light Assault Rifle Ballistic Gun Light Assault Rifle Launcher Subdweller Shrapnel Launcher Special Weapon Mining Laser Build | -11 -10 -10 -8 ------- Run | Yrd Mat Sub Mat Slots Evolved 4 | . . . 4 Power . | . . . . Propulsion 1 | . . . 1 Utility 3 | . . . 3 Weapon . | . . . . Parts Attached 26 | 9 7 4 6 Power 4 | 1 2 1 . Engine 4 | 1 2 1 . Core . | . . . . Reactor . | . . . . Propulsion 7 | 2 2 . 3 Treads 3 | . . . 3 Leg 4 | 2 2 . . Wheel . | . . . . Hover . | . . . . Flight . | . . . . Utility 7 | 3 1 1 2 Device 3 | 2 . 1 . Storage 2 | 1 1 . . Processor 1 | . . . 1 Hackware . | . . . . Protection 1 | . . . 1 Artifact . | . . . . Weapon 8 | 3 2 2 1 Energy Gun . | . . . . Energy Cannon . | . . . . Ballistic Gun 5 | 2 2 1 . Ballistic Cannon . | . . . . Launcher 2 | . . 1 1 Special Weapon 1 | 1 . . . Impact Weapon . | . . . . Slashing Weapon . | . . . . Piercing Weapon . | . . . . Special Melee Weapon . | . . . . Unidentified Prototypes 1 | . . . 1 Parts Lost 12 | . 1 1 10 Power 1 | . . . 1 Propulsion 4 | . . 1 3 Utility 4 | . . . 4 Weapon 3 | . 1 . 2 Highest Loss Streak 10 | . 1 1 10 To Critical Strikes . | . . . . Average Backups 15 | 3 9 18 17 Power 2 | . 1 3 3 Propulsion 3 | 1 2 4 3 Utility 4 | . 2 6 4 Weapon 4 | . 2 4 6 Tool/Special . | . . . . Unused Backups 12 | . . . 12 Power 1 | . . . 1 Propulsion 1 | . . . 1 Utility 7 | . . . 7 Weapon 3 | . . . 3 Tool/Special . | . . . . Average Slot Usage (%) 98 | . 99 99 97 Engine 12 | . 14 14 8 Treads 8 | . . . 25 Leg 18 | . 28 27 . Device 16 | . 14 14 20 Storage 12 | . 14 14 9 Processor 2 | . . . 6 Protection 3 | . . . 8 Ballistic Gun 17 | . 24 19 9 Launcher 6 | . . 8 8 Peak Build Rating 22 | 9 9 13 22 Average Rating 12 | 7 8 10 18 On Entrance 7 | . 8 9 12 Naked Turns 2 | . . . 2 Heaviest Build 62 | 14 48 59 62 Greatest Support 60 | 20 20 20 60 Greatest Overweight (x) 14 | 2 2 5 14 Average Overweight (x) 1 | . . 2 . Largest Inventory Capacity 20 | 8 20 20 20 Average Capacity 18 | 7 14 20 19 Most Carried 20 | 7 16 20 20 Average Carried 15 | 3 9 18 17 Final Capacity 20 | 8 20 20 5 Final Carried 20 | 7 16 20 5 Class Distribution -------------------- 72% | Mutant 23% | Scavenger-Mutant 4% | Skirmisher Dominant Class ---------------- Mutant | -10/Materials Mutant | -10/Subcaves Mutant | -8/Materials Resources | -11 -10 -10 -8 ----------- Run | Yrd Mat Sub Mat Matter Collected 910 | 298 182 111 319 Remotely . | . . . . Salvage Created 770 | 125 199 106 340 Parts 42 | 8 11 6 17 Haulers Intercepted . | . . . . Recyclers Shooed . | . . . . Parts Field Recycled . | . . . . Retrieved Matter . | . . . . Parts Self-Destructed 11 | . . 11 . Prevented . | . . . . Kills | -11 -10 -10 -8 ------- Run | Yrd Mat Sub Mat Combat Hostiles Destroyed 22 | . 7 4 11 Guns 9 | . 7 . 2 AOE 13 | . . 4 9 Classes Destroyed 10 | 2 2 2 4 Builder 1 | . . . 1 Tunneler 3 | 3 . . . Recycler 1 | 1 . . . Watcher 1 | . . . 1 Swarmer 4 | . 4 . . Grunt 9 | . 3 1 5 Brawler 1 | . . . 1 Duelist 2 | . . . 2 Sentry 4 | . . 1 3 Subdweller 2 | . . 2 . Best Kill Streak 6 | 2 3 2 6 Combat Bots Only 5 | . 3 2 5 Max Kills in Single Turn 3 | 1 1 2 3 Gunslinging . | . . . . Exploded 3 | . . 2 3 Melee . | . . . . Uniques/NPCs Destroyed . | . . . . Combat | -11 -10 -10 -8 -------- Run | Yrd Mat Sub Mat Hostile Shots Fired 200 | . 59 19 122 Missed 63 | . 18 7 38 Hits 137 | . 41 12 84 Projectile 137 | . 41 12 84 AOE 1 | . . . 1 Critical Strikes 2 | . . 1 1 Damage Taken 2135 | . 418 258 1459 Core 713 | . 87 69 557 Absorbed by Shields . | . . . . Redirected to Shielding 54 | . . . 54 Regen/Repaired (Parts) 43 | . . . 43 Core Remaining (%) 68 | 100 . 37 . Volleys Fired 79 | 17 31 6 25 Largest 2 | 2 2 1 2 Hottest 120 | 40 120 40 40 Shots Fired 125 | 34 51 6 34 Gun 95 | 34 43 . 18 Cannon . | . . . . Launcher 22 | . . 6 16 Special 8 | . 8 . . Kinetic 117 | 34 43 6 34 Thermal 8 | . 8 . . Explosive . | . . . . Electromagnetic . | . . . . Robot Hit Streak 11 | 5 6 2 11 Robot Miss Streak 6 | 2 3 2 6 Penetration Max . | . . . . Secondary Targets 1 | . . . 1 Max Gunslinging Chain 1 | . . . 1 Shots Hit Robots 65 | 21 22 3 19 Core Hits 45 | 6 12 6 21 Critical Kills . | . . . . Critical Parts Destroyed . | . . . . Critical Strikes . | . . . . Melee Attacks . | . . . . Impact . | . . . . Slashing . | . . . . Piercing . | . . . . Sneak Attacks . | . . . . Combat Hostiles . | . . . . Follow-up Attacks . | . . . . Damage Inflicted 2304 | 228 193 320 1563 Guns 550 | 228 193 . 129 Cannons . | . . . . Explosions 1754 | . . 320 1434 Melee . | . . . . Ramming . | . . . . Kinetic 1841 | 228 193 320 1100 Thermal . | . . . . Explosive 463 | . . . 463 Electromagnetic . | . . . . Impact . | . . . . Slashing . | . . . . Piercing . | . . . . Highest Corruption . | . . . . Average Corruption . | . . . . Corruption Purged . | . . . . Corruption Blocked . | . . . . Overload Shots . | . . . . Overflow Damage 59 | . . . 59 Projectiles . | . . . . Explosions 59 | . . . 59 Melee . | . . . . Knockbacks . | . . . . Impact . | . . . . Kinetic . | . . . . Secondary . | . . . . Self-Inflicted Damage 61 | . . . 61 Shots 2 | . . . 2 Rammed . | . . . . Targets Rammed . | . . . . Kicked . | . . . . Crushed . | . . . . Highest Temperature 374 | . 60 . 374 Average Temperature 52 | . 21 . 118 Received Heat Transfer 786 | . 111 54 621 Effects 2 | . . . 2 Energy Bleed 1 | . . . 1 Damage (minor) 1 | . . . 1 Siege Activations . | . . . . Martial Activations . | . . . . Shielding Activations . | . . . . Robots Disrupted . | . . . . Combat Hostiles . | . . . . Robots Corrupted . | . . . . Combat Hostiles . | . . . . Parts Fried . | . . . . Impact Corruptions . | . . . . Robots Melted . | . . . . Combat Hostiles . | . . . . Parts Melted . | . . . . Heat Transferred . | . . . . Parts Sabotaged . | . . . . Parts Stolen . | . . . . Parts Stripped . | . . . . Power Chain Reactions . | . . . . Alert | -11 -10 -10 -8 ------- Run | Yrd Mat Sub Mat Maximum Alert Level 1 | . . . 1 Low Security (%) 97 | 100 100 . 96 Level 1 2 | . . . 3 Level 2 . | . . . . Level 3 . | . . . . Level 4 . | . . . . Level 5 . | . . . . High Security . | . . . . Max Security . | . . . . Peak Influence 355 | 10 75 . 355 Initial . | . . . . Average 34 | 1 28 . 44 Influence Increases 780 | 20 222 70 468 Destroy 0b10 Robot/C 400 | . 140 40 220 Destroy 0b10 Robot/NC 30 | 20 . . 10 Destroy Leader 82 | . 30 . 52 Disable Machine 60 | . 15 . 45 Destroy Structure 133 | . 7 . 126 Lose Combat Pursuer 75 | . 30 30 15 Influence Decreases 644 | 20 221 71 332 Entered New Map 1 | . . 1 . Time Decay 383 | 20 211 70 82 Lost Part 110 | . 10 . 100 Purge Threat 150 | . . . 150 Squads Dispatched 5 | . 1 . 4 Investigation . | . . . . Extermination . | . . . . Reinforcement 2 | . 1 . 1 Assault . | . . . . Garrison 3 | . . . 3 Intercept . | . . . . Searches Triggered . | . . . . Construction Impeded . | . . . . Haulers Reinforced . | . . . . Active Scanning Responses . | . . . . Cargo Convoy Interrupts . | . . . . Stealth | -11 -10 -10 -8 --------- Run | Yrd Mat Sub Mat Distress Signals 4 | . 2 . 2 Communications Jammed . | . . . . Distress Signals . | . . . . Times Spotted 40 | . 13 4 23 Peak Tracking Total 9 | . 4 2 9 Tactical Retreats 5 | . 2 2 1 Traps | -11 -10 -10 -8 ------- Run | Yrd Mat Sub Mat Traps Triggered 1 | . . 1 . Indirectly . | . . . . Trap Hack Attempts . | . . . . Triggered . | . . . . Disarmed . | . . . . Reprogrammed . | . . . . Reused . | . . . . Traps Extracted . | . . . . Installed . | . . . . Triggered . | . . . . Machines | -11 -10 -10 -8 ---------- Run | Yrd Mat Sub Mat Machines Disabled 4 | . 1 . 3 Max in Single Turn 1 | . 1 . 1 Machines Repaired . | . . . . Machines Dismantled . | . . . . Machines Sabotaged . | . . . . Overloaded Fab Kills . | . . . . Hacking | -11 -10 -10 -8 --------- Run | Yrd Mat Sub Mat Machines Accessed 4 | . 1 . 3 Terminals 1 | . . . 1 Fabricators . | . . . . Repair Stations 1 | . . . 1 Recycling Units 2 | . 1 . 1 Scanalyzers . | . . . . Garrison Access . | . . . . Total Hacks 12 | . 2 . 10 Successful 10 | . 1 . 9 Failed 2 | . 1 . 1 Catastrophic . | . . . . Database Lockouts . | . . . . Manual . | . . . . Terminals 2 | . . . 2 Fabricators . | . . . . Repair Stations 3 | . . . 3 Recycling Units 7 | . 2 . 5 Scanalyzers . | . . . . Garrison Access . | . . . . Terminal Hacks 1 | . . . 1 Unreport Threat 1 | . . . 1 Fabricator Hacks . | . . . . Repair Station Hacks 3 | . . . 3 Scan Component 2 | . . . 2 Repair 1 | . . . 1 Recycling Unit Hacks 6 | . 1 . 5 Recycle Component 1 | . . . 1 Process 1 | . . . 1 Report Inventory 2 | . 1 . 1 Retrieve Matter 1 | . . . 1 Retrieve Components 1 | . . . 1 Scanalyzer . | . . . . Garrison Access Hacks . | . . . . Unauthorized Hacks . | . . . . Terminals . | . . . . Fabricators . | . . . . Repair Stations . | . . . . Recycling Units . | . . . . Scanalyzers . | . . . . Garrison Access . | . . . . Data Cores Recovered . | . . . . Used . | . . . . Hacking Detections 3 | . 1 . 2 Full Trace Events 1 | . . . 1 Feedback Events . | . . . . Feedback Blocked . | . . . . Robot Schematics Acquired . | . . . . Robots Built . | . . . . Authchips . | . . . . Time . | . . . . Total Robot Build Rating . | . . . . Part Schematics Acquired . | . . . . Parts Built . | . . . . Authchips . | . . . . Time . | . . . . Total Part Build Rating . | . . . . Parts Repaired 1 | . . . 1 Time 32 | . . . 32 Parts Recycled 1 | . . . 1 Recycled Matter 39 | . . . 39 Retrieved Matter 39 | . . . 39 Retrieved Components . | . . . . Parts Scanalyzed . | . . . . Part Schematics Acquired . | . . . . Parts Damaged . | . . . . Bothacking | -11 -10 -10 -8 ------------ Run | Yrd Mat Sub Mat Used RIF Installer . | . . . . Robots Hacked . | . . . . Non-combat . | . . . . Combat . | . . . . Robot Hacks Applied . | . . . . Relay Couplers Released . | . . . . Fabnet Peak Effective % . | . . . . Robots Rewired . | . . . . Allies Hacked . | . . . . Hacks Repelled . | . . . . Allies | -11 -10 -10 -8 -------- Run | Yrd Mat Sub Mat Total Allies . | . . . . Largest Group . | . . . . Highest-Rated Group . | . . . . Highest-Rated Ally . | . . . . Total Orders . | . . . . Ally Attacks . | . . . . Total Damage . | . . . . Kills . | . . . . Allies Corrupted . | . . . . Allies Melted . | . . . . Intel | -11 -10 -10 -8 ------- Run | Yrd Mat Sub Mat Active Infowar (turns) 2782 | 79 568 1205 930 Optics 453 | . . 81 372 Terrain 1007 | 77 . . 930 Seismic 2462 | 2 568 1124 768 Robot Analysis Total . | . . . . Derelict Logs Recovered 2 | . . 2 . Drone Launches . | . . . . Drone Recoveries . | . . . . Exploration | -11 -10 -10 -8 ------------- Run | Yrd Mat Sub Mat Turns Passed 2857 | 151 568 1206 932 Spaces Moved 1126 | 70 248 455 353 Core 17 | 9 . . 8 Treads 345 | . . . 345 Legs 764 | 61 248 455 . Wheels . | . . . . Hover . | . . . . Flight . | . . . . Fastest Speed 50 | 50 120 260 50 Average Speed 212 | 120 180 260 191 Slowest Speed 750 | 190 260 470 750 Overloaded Moves . | . . . . Propulsion Burnouts . | . . . . Robots Hopped . | . . . . Potential Cave-ins . | . . . . Cave-ins Triggered . | . . . . Exploration Rate (%) 24 | 4 27 33 33 Regions Visited 3 Branch Regions 1 Pre-discovered Areas . | . . . . Known Exits Taken . | . . . . Unknown Exits Taken 3 | 1 1 1 . Scrap Searched . | . . . . Spaces Dug 4 | . 4 . . Terrain Destroyed 222 | . 7 50 165 Melee . | . . . . Projectile 7 | . 7 . . AOE 215 | . . 50 165 Terrain Rammed . | . . . . Walls Destroyed . | . . . . Machines Disabled . | . . . . Actions | -11 -10 -10 -8 --------- Run | Yrd Mat Sub Mat Total 1455 | 102 308 469 576 Wait 185 | . 14 . 171 Move 1123 | 69 247 454 353 Hop . | . . . . Pick Up 21 | 7 6 2 6 Fast Attach 11 | 7 . 1 3 Attach 8 | . 1 1 6 Detach 3 | . . 1 2 Swap 19 | 2 8 4 5 Drop 6 | . 1 . 5 Fire 79 | 17 31 6 25 Melee . | . . . . Ram . | . . . . Kick . | . . . . Crush . | . . . . Escape Stasis . | . . . . Rewire . | . . . . Trap . | . . . . Miscellaneous . | . . . . Route ------- -11/Scrapyard -10/Materials -10/Subcaves -8/Materials History --------- Turn | Location | Event 20 | -11/Scrapyard | Discovered new exit (range 16) 152 | -11/Scrapyard | Entered Materials 326 | -10/Materials | Build established: Mutant 636 | -10/Materials | Discovered new exit (range 9) 720 | -10/Materials | Entered Subcaves 811 | -10/Subcaves | Learned Materials emergency access door positions 874 | -10/Subcaves | Build established: Scavenger-Mutant 1089 | -10/Subcaves | Shifting Twisted Machinery released Sub. Shrapnel Launcher 1472 | -10/Subcaves | Build established: Mutant 1539 | -10/Subcaves | Shifting Twisted Machinery released Sub. Optics 1546 | -10/Subcaves | Shifting Twisted Machinery released Sub. Power Source 1680 | -10/Subcaves | Core integrity fell below 50% 1744 | -10/Subcaves | Discovered new exit (range 6) 1926 | -10/Subcaves | Entered Materials 1926 | -8/Materials | Evolved 4 slots: Propulsion x1, Utility x3 1985 | -8/Materials | Repaired Sub. Shrapnel Launcher 2627 | -8/Materials | Garrison activated, responded to threat 2852 | -8/Materials | Core integrity fell below 50% 2857 | -8/Materials | Core integrity fell below 20% 2858 | -8/Materials | Destroyed by G-47 Trooper with Particle Gun Last Messages --------------- 02827_ Y-45 Defender emerges from the garrison. 02827_ K-01 Serf collects debris. 02827_ R-06 Scavenger collects Lgt. Nuclear Core. 02828_ K-01 Serf collects debris. 02831_ Acquired 44 matter. 02831_ K-01 Serf cleans the Garrison Access. 02831_ Seismic Detector destroyed. 02832_ U-05 Engineer builds a Wall. 02834_ K-01 Serf cleans the Garrison Access. 02834_ Lgt. Treads destroyed. 02838_ K-01 Serf collects debris. 02838_ Weapon Shielding destroyed. 02842_ Assault Rifle destroyed. 02843_ K-01 Serf collects debris. 02848_ Lgt. Assault Rifle destroyed. 02852_ Dropped Hcp. Storage Unit. 02852_ Critical hit (Burn: +37). 02856_ Nuclear Reactor explodes. 02856_ Imp. Terrain Scanner destroyed. 02856_ Imp. Terrain Scan Processor destroyed. Map ----- +----------------------------------------------------+ | ?????????????????????????????????????????????????? | | ????????????????????????????????????+???+????????? | | ?????????????????????????????????????????????????? | | ?????????????????????????????????????????????????? | | ?????????????????????????????????????????????????? | | ????????????????????????????????????+???+????????? | | ???????????????????????????????? ????????????????? | | ???????????????????????#??????###+#?????#?#??+???? | | ??????????????????????? ? ??? ? ?? ?? ???????? | | ?????????????????????#?????? ? ? ??? ??? ??? ?? | | ???????????????????? ?? ?? ???? ???? | | ???????????????????#??####??#####/####?#?###???+?? | | ????????????????????#??# ## ##??#### ? | | ?????????????????#?????# """" ## ####?###?? ? | | ????????????????? ?#??## """" ## ###?#### ?? ?? | | ??????????????? ???### """" ## ##?##### ? ? | | ?????????????????????## # ########?? | | ?????????????????"?##### #######?? | | ???????????????"???### ####??####??#? | | ????????????? ? ??# ] ! #??##?#?###?#? | | ?????????????????### """ g[ ############## | | ???????????????#?### """ ! ##a###"T"###""""" | | ??????????????#????# """ g]gY! " | | ???????????????#???# [ " | | ?????????????????### ! g Y """ " | | ?????????????###??#####/#@ ## "G ] "/ | | ?????????????????? ? k """ " | | ????????????????? ? " | | ??????????????? ? ? # | | ????????????????? | | ???????????????s | | ??????????????# ##########+#### # | | ??????????????# #?##### # | | ????????????? #?##### | | ????????????? ####### !!! " | | ????????????? """"" ####### !! # | | ????????????? ""T"" ## # # ! # | | ????????? ????? r # #" "" | | ??????????????? !" "% | | ??????#????????? # # """"" | | ??????? ????? ? """#+#####""""" | | ????????????? ? ### ##? # | | ???????? ! ?? ### ??# """ #??? | | ??????? ? ### ##? ?R" +?? | | ??????? #??#######+### ##?# ##???"?"?#? ? | | ? ? ??# ##### #??? ##? ? ?#??? | | ????" ## ##### """ ![] #### ??#? ??#?? | | ???## #??## """ ![] ##### ###??##?#???? | | ? ??" ## ##### """ ![ #?#?? ?#####???#??? | | ? ?? ?# ##### """ "##### #######??# ? | +----------------------------------------------------+ Best States ------------- Heat Dissipation 31 Energy Generation 15 Energy Capacity 250 Matter Stores 300 Matter Capacity 300 Sight Range 21 Terrain Scan Range 16 Terrain Scan Density 110 Weapon Shielding 33 Evasion (%) 55 Recoil Reduction 3 Item Schematics ----------------- None Robot Schematics ------------------ None Fabricated ------------ Nothing Repaired ---------- Sub. Shrapnel Launcher | 49% | -8/Materials Alien Tech Used ----------------- None Achievements -------------- Omniscient Cartographer Challenges ------------ None Game ------ Seed MatterMetafieldDrillbomb Manual? 0 Play Time 00:22:30 Cumulative 30.3 hours Start 2025.06.21 @ 22:17:40 End 2025.06.21 @ 22:37:27 Sessions 1 Manual Loads 0 Difficulty Rogue Special Mode None Game No. 30 Rogue 30 Adventurer 0 Explorer 0 Win Type - Total 0 Types 0/0/0/0/0/0/0/0/0/0 Lore% 21 Gallery% 22 Achievement% 17 Wizard Run 0 Options --------- Layout 2 ASCII 0 Keyboard 0 Movement Mouse Keybinds 0 Fullscreen 1 Font 16/TerminusCaps Map View 27x23 Zoom Use 80% Tactical HUD 1 Map Filters NONE Filters NONE Steam 1 RUN: 1133e19e-951d-4735-ae79-134fce648114